fUST/lending_fUST_20241110
["ID","MTS","AMOUNT","RATE_DAILY","PERIOD"]
[341845907,1731251466452,-151.0,0.00027943,7]
[341845908,1731251466461,-3399.721799,0.00027943,7]
[341845910,1731251466470,-329.349078,0.00027943,7]
[341845911,1731251466481,-329.349078,0.00027943,7]
[341845912,1731251466490,-2054.95,0.00027943,2]
[341845913,1731251466500,-151.0,0.00027943,7]
[341845914,1731251466510,-1319.9,0.00027943,2]
[341845915,1731251466519,-257.304202,0.00027943,7]
[341845916,1731251466529,-674.851497,0.00027943,7]
[341845917,1731251466539,-257.304202,0.00027943,7]
[341845918,1731251466548,-535.71,0.00027943,2]
[341845919,1731251466558,-674.851497,0.00027943,7]
[341845920,1731251466567,-7430.06,0.00027943,2]
[341845921,1731251466576,-500.0,0.00027943,2]
[341845922,1731251466585,-2525.55,0.00027943,2]
[341845923,1731251466595,-598.91,0.00027943,2]
[341845924,1731251466605,-246.088511,0.00027943,7]
[341845925,1731251466615,-246.088511,0.00027943,7]
[341845926,1731251466624,-500.0,0.00027943,2]
[341845927,1731251466634,-500.0,0.00027943,2]
[341845928,1731251466645,-895.15,0.00027943,2]
[341845929,1731251466762,-3361.2,0.00027945,2]
[341845930,1731251466772,-2010.89,0.00027945,2]
[341845931,1731251466782,-500.0,0.00027973,5]
[341845932,1731251466792,-446.24837003,0.00027973,5]
[341845933,1731251466955,-53.75162997,0.00027973,5]
[341845934,1731251466965,-500.0,0.00027973,5]
[341845935,1731251466977,-500.0,0.00027973,5]
[341845936,1731251466987,-160.0,0.00027984,10]
[341845937,1731251466996,-423.80048986,0.00027985,2]
[341845938,1731251467007,-165528.03047562,0.00027985,2]
[341845939,1731251467016,-293.194669,0.00027985,7]
[341845940,1731251467026,-293.194669,0.00027985,7]
[341845941,1731251467035,-292.073552,0.00027985,7]
[341845942,1731251467045,-292.073552,0.00027985,7]
[341845943,1731251467054,-151.0,0.00027985,7]
[341845945,1731251467064,-856.517534,0.00027985,7]
[341845947,1731251467073,-856.517534,0.00027985,7]
[341845949,1731251467082,-221.482255,0.00027985,7]
[341845951,1731251467091,-3821.320072,0.00027985,7]
[341845952,1731251467100,-151.0,0.00027985,7]
[341845954,1731251467111,-3821.320072,0.00027985,7]
[341845956,1731251467121,-151.0,0.00027985,7]
[341845958,1731251467130,-265.144848,0.00027985,7]
[341845960,1731251467139,-265.144848,0.00027985,7]
[341845962,1731251467149,-355.493892,0.00027985,2]
[341845963,1731251467159,-222.353032,0.00027985,7]
[341845965,1731251467169,-355.493892,0.00027985,2]
[341845967,1731251467178,-268.783875,0.00027985,7]
[341845969,1731251467189,-268.783875,0.00027985,7]
[341845971,1731251467198,-2020.904124,0.00027985,7]
[341845973,1731251467207,-2020.904124,0.00027985,7]
[341845975,1731251467216,-151.0,0.00027985,7]
[341845977,1731251467227,-151.0,0.00027985,7]
[341845978,1731251467237,-2323.190952,0.00027985,7]
[341845980,1731251467246,-2323.190952,0.00027985,7]
[341845982,1731251467256,-2635.512469,0.00027985,7]
[341845984,1731251467265,-2635.512469,0.00027985,7]
[341845986,1731251467274,-151.0,0.00027985,7]
[341845988,1731251467284,-151.0,0.00027985,7]
[341845989,1731251467294,-1504.508038,0.00027985,7]
[341845992,1731251467304,-1504.508038,0.00027985,7]
[341845993,1731251467314,-1021.831594,0.00027985,7]
[341845995,1731251467323,-1021.831594,0.00027985,7]
[341845997,1731251467332,-581.454559,0.00027985,7]
[341845999,1731251467342,-151.0,0.00027985,7]
[341846001,1731251467351,-581.454559,0.00027985,7]
[341846003,1731251467360,-190.81479,0.00027985,7]
[341846005,1731251467369,-3218.147499,0.00027985,7]
[341846007,1731251467379,-190.81479,0.00027985,7]
[341846008,1731251467389,-3218.147499,0.00027985,7]
[341846010,1731251467398,-1245.356628,0.00027985,7]
[341846012,1731251467407,-151.0,0.00027985,7]
[341846014,1731251467416,-1245.356628,0.00027985,7]
[341846017,1731251467425,-151.0,0.00027985,7]
[341846018,1731251467434,-384.083894,0.00027994,7]
[341846020,1731251467443,-384.083897,0.00027994,7]
[341846022,1731251467453,-527.96129691,0.00027994,2]
[341846023,1731251467463,-500.0,0.00027994,2]
[341846024,1731251467472,-500.0,0.00027994,2]
[341846025,1731251467483,-500.0,0.00027994,2]
[341846026,1731251467493,-504.29,0.00027994,2]
[341846027,1731251467502,-677.67,0.00027994,2]
[341846028,1731251467511,-500.0,0.00027994,2]
[341846029,1731251467520,-500.0,0.00027994,2]
[341846030,1731251467529,-500.0,0.00027994,2]
[341846031,1731251467539,-500.0,0.00027994,2]
[341846032,1731251467548,-500.0,0.00027994,2]
[341846033,1731251467557,-527.42,0.00027994,2]
[341846034,1731251467567,-512.24,0.00027994,2]
[341846035,1731251467577,-500.0,0.00027994,2]
[341846036,1731251467586,-500.0,0.00027994,2]
[341846037,1731251467595,-558.62,0.00027994,2]
[341846038,1731251467605,-1000.0,0.00027994,2]
[341846039,1731251467614,-500.0,0.00027994,2]
[341846040,1731251467624,-500.0,0.00027994,2]
[341846041,1731251467633,-528.67,0.00027994,2]
[341846042,1731251467643,-500.0,0.00027994,2]
[341846043,1731251467653,-500.0,0.00027994,2]
[341846044,1731251467663,-500.0,0.00027994,2]
[341846045,1731251467672,-500.0,0.00027994,2]
[341846046,1731251467682,-786.74,0.00027994,2]
[341846047,1731251467691,-822.97,0.00027994,2]
[341846048,1731251467700,-369.90922875,0.00027994,2]
[341846049,1731251467709,-500.0,0.00027994,2]
[341846050,1731251467719,-853.36,0.00027994,2]
[341846051,1731251467729,-730.28,0.00027994,2]
[341846052,1731251467739,-500.0,0.00027994,2]
[341846053,1731251467748,-500.0,0.00027994,2]
[341846054,1731251467758,-500.0,0.00027994,2]
[341846055,1731251467768,-567.27,0.00027994,15]
[341846056,1731251467777,-500.0,0.00027994,2]
[341846057,1731251467786,-641.89628221,0.00027994,2]
[341846058,1731251467795,-3523.39,0.00027994,2]
[341846059,1731251467805,-151.0,0.00027994,7]
[341846060,1731251467814,-500.0,0.00027994,2]
[341846061,1731251467824,-639.222275,0.00027994,7]
[341846062,1731251467833,-639.222275,0.00027994,7]
[341846063,1731251467842,-500.0,0.00027994,2]
[341846064,1731251467851,-932.900632,0.00027994,7]
[341846065,1731251467861,-932.900632,0.00027994,7]
[341846066,1731251467870,-151.0,0.00027994,7]
[341846067,1731251467879,-3399.721799,0.00027994,7]
[341846068,1731251467889,-170.182215,0.00027994,7]
[341846069,1731251467899,-3399.721799,0.00027994,7]
[341846070,1731251467909,-500.0,0.00027994,2]
[341846071,1731251467919,-329.349078,0.00027994,7]
[341846072,1731251467928,-500.0,0.00027994,2]
[341846073,1731251467937,-329.349078,0.00027994,7]
[341846074,1731251467947,-500.0,0.00027994,2]
[341846075,1731251467956,-500.0,0.00027994,2]
[341846076,1731251467966,-500.0,0.00027994,2]
[341846077,1731251467978,-151.0,0.00027994,7]
[341846078,1731251467988,-500.0,0.00027994,2]
[341846079,1731251467998,-257.304202,0.00027994,7]
[341846080,1731251468008,-674.851497,0.00027994,7]
[341846081,1731251468017,-491.23589685,0.00027994,2]
[341846082,1731251468029,-257.304202,0.00027994,7]
[341846083,1731251468039,-1186.11,0.00027994,2]
[341846084,1731251468048,-674.851497,0.00027994,7]
[341846085,1731251468058,-500.0,0.00027994,2]
[341846086,1731251468068,-682.43,0.00027994,2]
[341846087,1731251468078,-500.0,0.00027994,2]
[341846088,1731251468088,-630.88,0.00027994,2]
[341846089,1731251468097,-500.0,0.00027994,2]
[341846090,1731251468107,-500.0,0.00027994,2]
[341846091,1731251468119,-576.9910207,0.00027994,2]
[341846092,1731251468129,-200.0,0.00027994,2]
[341846093,1731251468139,-246.088511,0.00027994,7]
[341846094,1731251468149,-246.088511,0.00027994,7]
[341846095,1731251468159,-247.50416859,0.00027994,2]
[341846096,1731251468168,-226.74482942,0.00027994,2]
[341846097,1731251468177,-256.88483758,0.00027994,2]
[341846098,1731251468186,-500.0,0.00027994,2]
[341846099,1731251468197,-379.9688664,0.00027994,2]
[341846100,1731251468206,-523.58,0.00027994,2]
[341846101,1731251468215,-500.0,0.00027994,2]
[341846102,1731251468225,-500.0,0.00027994,2]
[341846103,1731251468236,-500.0,0.00027995,2]
[341846104,1731251468246,-200.0,0.00028,120]
[341846105,1731251468255,-465.49324208,0.00028061,2]
[341846106,1731251468264,-4061.56,0.000281,30]
[341846107,1731251468274,-218.983821,0.00028144,7]
[341846108,1731251468283,-218.983821,0.00028144,7]
[341846109,1731251468293,-318.42235,0.00028144,7]
[341846110,1731251468302,-318.42235,0.00028144,7]
[341846111,1731251468311,-151.0,0.00028144,7]
[341846113,1731251468320,-500.0,0.00028144,2]
[341846115,1731251468330,-500.0,0.00028144,2]
[341846117,1731251468340,-1252.72,0.00028144,2]
[341846119,1731251468349,-500.0,0.00028144,2]
[341846121,1731251468359,-500.0,0.00028144,2]
[341846122,1731251468368,-539.31,0.00028144,2]
[341846124,1731251468377,-799.31,0.00028144,2]
[341846126,1731251468386,-516.25845413,0.00028144,2]
[341846128,1731251468395,-545.3794183,0.00028144,2]
[341846130,1731251468405,-500.0,0.00028144,2]
[341846132,1731251468414,-500.0,0.00028144,2]
[341846134,1731251468423,-500.0,0.00028144,2]
[341846135,1731251468433,-1198.2,0.00028144,2]
[341846137,1731251468442,-521.41765122,0.00028144,2]
[341846139,1731251468452,-500.0,0.00028144,2]
[341846141,1731251468461,-500.0,0.00028144,2]
[341846143,1731251468470,-500.0,0.00028144,2]
[341846145,1731251468483,-500.0,0.00028144,2]
[341846147,1731251468492,-500.0,0.00028144,2]
[341846149,1731251468501,-589.67,0.00028144,2]
[341846151,1731251468511,-809.69,0.00028144,2]
[341846153,1731251468520,-4051.49,0.00028144,2]
[341846155,1731251468530,-1434.7,0.00028144,2]
[341846157,1731251468539,-876.15,0.00028144,2]
[341846159,1731251468548,-500.0,0.00028144,2]
[341846161,1731251468558,-661.56,0.00028144,2]
[341846163,1731251468567,-500.75432902,0.00028144,2]
[341846165,1731251468577,-1961.68,0.00028144,2]
[341846167,1731251468587,-2320.82,0.00028144,2]
[341846169,1731251468596,-3620.80736577,0.00028144,2]
[341846292,1731251734209,1362.0,0.00020844,2]
[341846293,1731251760658,10000.0,0.00027,60]
[341846294,1731251820289,520.83333333,0.00020844,2]
[341846297,1731252107922,1000.0,0.000165,2]
[341846300,1731252133463,520.83333333,0.00020844,2]
[341846301,1731252141386,162.829203,0.00013973,2]
[341846373,1731252446548,520.83333333,0.00020844,2]
[341846435,1731252632734,-476.649053,0.00021791,2]
[341846437,1731252632743,-416.03635198,0.00021987,2]
[341846439,1731252632755,-104.79698135,0.00021987,2]
[341846441,1731252632764,-280.38301699,0.00021999,2]
[341847004,1731252638684,-19.61698301,0.00021999,2]
[341847006,1731252638693,-676.50490005,0.00022,30]
[341847013,1731252638751,-6948.23522467,0.00022,30]
[341847015,1731252638760,-1000.0,0.00022,2]
[341847017,1731252638770,-1000.0,0.00022,2]
[341847019,1731252638779,-1000.0,0.00022,2]
[341847021,1731252638789,-222.369877,0.00022116,2]
[341847022,1731252638798,-166.666666,0.00022445,2]
[341847023,1731252638807,-330.762956,0.00022748,2]
[341847024,1731252638816,-250.0,0.00022748,2]
[341847025,1731252638825,-3000.0,0.00022748,2]
[341847026,1731252638834,-2617.42552981,0.0002284,2]
[341847027,1731252638850,-1181.13412659,0.0002284,2]
[341847028,1731252638858,-256.9049615,0.0002293,2]
[341847029,1731252638868,-166.666666,0.00023057,2]
[341847030,1731252638877,-330.762956,0.00023433,2]
[341847031,1731252638886,-472.84773563,0.00023544,2]
[341847032,1731252638899,-24900.0,0.00023544,2]
[341847033,1731252638908,-2548.10438231,0.00023569,2]
[341847034,1731252638917,-166.666666,0.00023669,2]
[341847035,1731252638926,-3000.0,0.00024,2]
[341847036,1731252638935,-330.762956,0.00024118,2]
[341847037,1731252638944,-420.0,0.00024199,2]
[341847038,1731252638953,-166.666666,0.00024281,2]
[341847039,1731252638962,-2548.10438226,0.00024473,2]
[341847040,1731252638971,-509.28375157,0.00024657,2]
[341847041,1731252638981,-500.0,0.00024657,2]
[341847042,1731252638990,-155.51801254,0.00024657,2]
[341847043,1731252638999,-500.0,0.00024657,2]
[341847044,1731252639009,-500.0,0.00024657,2]
[341847045,1731252639018,-500.0,0.00024657,2]
[341847046,1731252639027,-343.06803304,0.00024657,2]
[341847047,1731252639036,-500.0,0.00024657,2]
[341847048,1731252639045,-500.0,0.00024657,2]
[341847049,1731252639054,-500.0,0.00024657,2]
[341847050,1731252639063,-500.0,0.00024657,2]
[341847051,1731252639073,-500.0,0.00024657,2]
[341847052,1731252639082,-500.0,0.00024657,2]
[341847053,1731252639091,-500.0,0.00024657,2]
[341847054,1731252639101,-500.0,0.00024657,2]
[341847055,1731252639110,-200.0,0.00024657,2]
[341847056,1731252639120,-500.0,0.00024657,2]
[341847057,1731252639130,-500.0,0.00024657,2]
[341847058,1731252639139,-500.0,0.00024657,2]
[341847059,1731252639151,-500.0,0.00024657,2]
[341847060,1731252639160,-502.95140285,0.00024657,2]
[341847061,1731252639170,-252.83729053,0.00024657,2]
[341847062,1731252639180,-502.2241235,0.00024657,2]
[341847063,1731252639190,-500.0,0.00024657,2]
[341847064,1731252639200,-1607.71,0.00024657,2]
[341847065,1731252639210,-500.0,0.00024657,2]
[341847066,1731252639220,-500.0,0.00024657,2]
[341847067,1731252639230,-500.0,0.00024657,2]
[341847068,1731252639240,-500.0,0.00024657,2]
[341847069,1731252639249,-792.78,0.00024657,2]
[341847070,1731252639259,-500.0,0.00024657,2]
[341847071,1731252639269,-377.75290881,0.00024657,2]
[341847072,1731252639278,-500.0,0.00024657,2]
[341847073,1731252639288,-500.0,0.00024657,2]
[341847074,1731252639297,-500.0,0.00024657,2]
[341847075,1731252639307,-500.0,0.00024657,2]
[341847076,1731252639317,-500.0,0.00024657,2]
[341847077,1731252639326,-500.0,0.00024657,2]
[341847078,1731252639335,-500.0,0.00024657,2]
[341847079,1731252639345,-500.0,0.00024657,2]
[341847080,1731252639354,-500.0,0.00024657,2]
[341847081,1731252639363,-500.0,0.00024657,2]
[341847082,1731252639373,-500.0,0.00024657,2]
[341847083,1731252639383,-500.0,0.00024657,2]
[341847084,1731252639392,-500.0,0.00024657,2]
[341847085,1731252639404,-595.99,0.00024657,2]
[341847086,1731252639413,-500.0,0.00024657,2]
[341847087,1731252639422,-500.0,0.00024657,2]
[341847088,1731252639432,-500.0,0.00024657,2]
[341847089,1731252639441,-500.0,0.00024657,2]
[341847090,1731252639451,-500.0,0.00024657,2]
[341847091,1731252639460,-500.0,0.00024657,2]
[341847092,1731252639470,-500.0,0.00024657,2]
[341847093,1731252639484,-500.0,0.00024657,2]
[341847094,1731252639497,-500.0,0.00024657,2]
[341847095,1731252639515,-500.0,0.00024657,2]
[341847096,1731252639525,-561.13882929,0.00024657,2]
[341847097,1731252639536,-500.0,0.00024657,2]
[341847098,1731252639547,-500.0,0.00024657,2]
[341847099,1731252639557,-500.0,0.00024657,2]
[341847100,1731252639567,-500.0,0.00024657,2]
[341847102,1731252639577,-179.63380848,0.00024657,2]
[341847104,1731252639586,-1476.52,0.00024657,2]
[341847106,1731252639596,-500.0,0.00024657,2]
[341847108,1731252639605,-500.0,0.00024657,2]
[341847110,1731252639615,-511.07489608,0.00024657,2]
[341847112,1731252639625,-530.76,0.00024657,2]
[341847114,1731252639636,-814.31,0.00024657,2]
[341847116,1731252639651,-504.97643394,0.00024657,2]
[341847118,1731252639660,-500.86400293,0.00024657,2]
[341847120,1731252639670,-552.82391755,0.00024657,2]
[341847122,1731252639679,-500.0,0.00024657,2]
[341847124,1731252639688,-500.0,0.00024657,2]
[341847126,1731252639698,-500.0,0.00024657,2]
[341847128,1731252639707,-500.0,0.00024657,2]
[341847130,1731252639717,-173.15684681,0.00024657,2]
[341847132,1731252639727,-500.0,0.00024657,2]
[341847134,1731252639736,-500.0,0.00024657,2]
[341847136,1731252639752,-500.0,0.00024657,2]
[341847137,1731252639762,-500.0,0.00024657,2]
[341847139,1731252639771,-500.0,0.00024657,2]
[341847141,1731252639780,-500.0,0.00024657,2]
[341847143,1731252639790,-500.0,0.00024657,2]
[341847145,1731252639800,-500.0,0.00024657,2]
[341847147,1731252639810,-500.0,0.00024657,2]
[341847149,1731252639820,-500.0,0.00024657,2]
[341847151,1731252639830,-500.0,0.00024657,2]
[341847153,1731252639839,-500.0,0.00024657,2]
[341847155,1731252639848,-500.0,0.00024657,2]
[341847157,1731252639859,-500.0,0.00024657,2]
[341847159,1731252639869,-500.0,0.00024657,2]
[341847161,1731252639879,-500.0,0.00024657,2]
[341847163,1731252639889,-500.0,0.00024657,2]
[341847164,1731252639903,-500.0,0.00024657,2]
[341847165,1731252639912,-987.73,0.00024657,2]
[341847166,1731252639921,-515.1523813,0.00024657,2]
[341847167,1731252639931,-500.0,0.00024657,2]
[341847168,1731252639940,-586.32,0.00024657,2]
[341847169,1731252639950,-500.0,0.00024657,2]
[341847170,1731252639960,-250.61624124,0.00024657,2]
[341847172,1731252639970,-500.0,0.00024657,2]
[341847174,1731252639979,-500.0,0.00024657,2]
[341847176,1731252639988,-500.0,0.00024657,2]
[341847178,1731252639997,-500.0,0.00024657,2]
[341847180,1731252640006,-500.0,0.00024657,2]
[341847181,1731252640016,-500.0,0.00024657,2]
[341847183,1731252640026,-500.0,0.00024657,2]
[341847185,1731252640035,-500.0,0.00024657,2]
[341847187,1731252640044,-267.93563622,0.00024657,2]
[341847190,1731252640063,-319.13087418,0.00024657,2]
[341847192,1731252640073,-500.0,0.00024657,2]
[341847194,1731252640082,-500.0,0.00024657,2]
[341847196,1731252640092,-500.0,0.00024657,2]
[341847198,1731252640102,-518.37300104,0.00024657,2]
[341847201,1731252640111,-500.0,0.00024657,2]
[341847203,1731252640120,-547.84795689,0.00024657,2]
[341847205,1731252640130,-1375.81,0.00024657,2]
[341847207,1731252640139,-500.0,0.00024657,2]
[341847209,1731252640156,-664.68,0.00024657,2]
[341847211,1731252640166,-500.0,0.00024657,2]
[341847214,1731252640176,-915.14,0.00024657,2]
[341847215,1731252640186,-500.0,0.00024657,2]
[341847218,1731252640196,-500.0,0.00024657,2]
[341847220,1731252640207,-500.0,0.00024657,2]
[341847222,1731252640217,-500.0,0.00024657,2]
[341847224,1731252640227,-724.25,0.00024657,2]
[341847226,1731252640236,-500.0,0.00024657,2]
[341847228,1731252640247,-916.44,0.00024657,2]
[341847230,1731252640257,-500.0,0.00024657,2]
[341847232,1731252640268,-500.0,0.00024657,2]
[341847234,1731252640278,-500.0,0.00024657,2]
[341847236,1731252640288,-954.61,0.00024657,2]
[341847238,1731252640298,-500.0,0.00024657,2]
[341847240,1731252640308,-500.0,0.00024657,2]
[341847242,1731252640318,-506.03239013,0.00024657,2]
[341847244,1731252640327,-691.42,0.00024657,2]
[341847246,1731252640337,-1217.24,0.00024657,2]
[341847248,1731252640347,-500.0,0.00024657,2]
[341847250,1731252640356,-500.0,0.00024657,2]
[341847252,1731252640366,-500.0,0.00024657,2]
[341847254,1731252640376,-500.0,0.00024657,2]
[341847256,1731252640386,-500.0,0.00024657,2]
[341847258,1731252640399,-500.0,0.00024657,2]
[341847260,1731252640408,-500.0,0.00024657,2]
[341847262,1731252640418,-1030.34,0.00024657,2]
[341847264,1731252640427,-500.0,0.00024657,2]
[341847266,1731252640436,-500.0,0.00024657,2]
[341847268,1731252640446,-500.0,0.00024657,2]
[341847270,1731252640456,-624.0,0.00024657,2]
[341847272,1731252640465,-500.0,0.00024657,2]
[341847274,1731252640478,-500.0,0.00024657,2]
[341847276,1731252640488,-500.0,0.00024657,2]
[341847278,1731252640498,-500.0,0.00024657,2]
[341847280,1731252640507,-500.0,0.00024657,2]
[341847282,1731252640517,-500.0,0.00024657,2]
[341847284,1731252640527,-2336.0,0.00024657,2]
[341847286,1731252640536,-500.0,0.00024657,2]
[341847288,1731252640545,-4625.87,0.00024657,2]
[341847291,1731252640557,-500.0,0.00024657,2]
[341847293,1731252640567,-780.78,0.00024657,2]
[341847294,1731252640576,-194.50794264,0.00024657,2]
[341847296,1731252640586,-500.0,0.00024657,2]
[341847298,1731252640595,-7248.58,0.00024657,2]
[341847301,1731252640605,-1643.78,0.00024657,2]
[341847303,1731252640614,-731.1,0.00024657,2]
[341847305,1731252640623,-500.0,0.00024657,2]
[341847306,1731252640632,-500.0,0.00024657,2]
[341847309,1731252640643,-500.0,0.00024657,2]
[341847311,1731252640654,-500.0,0.00024657,2]
[341847312,1731252640664,-500.0,0.00024657,2]
[341847315,1731252640674,-508.42,0.00024657,2]
[341847317,1731252640683,-500.0,0.00024657,2]
[341847318,1731252640692,-500.0,0.00024657,2]
[341847320,1731252640702,-500.0,0.00024657,2]
[341847323,1731252640711,-553.62,0.00024657,2]
[341847325,1731252640721,-500.0,0.00024657,2]
[341847326,1731252640730,-500.0,0.00024657,2]
[341847328,1731252640740,-7927.48,0.00024657,2]
[341847330,1731252640750,-500.0,0.00024657,2]
[341847332,1731252640760,-500.0,0.00024657,2]
[341847334,1731252640769,-1715.03,0.00024657,2]
[341847336,1731252640779,-500.0,0.00024657,2]
[341847338,1731252640788,-540.08,0.00024657,2]
[341847340,1731252640798,-500.0,0.00024657,2]
[341847342,1731252640808,-500.0,0.00024657,2]
[341847345,1731252640818,-500.0,0.00024657,2]
[341847347,1731252640827,-500.0,0.00024657,2]
[341847349,1731252640836,-500.0,0.00024657,2]
[341847351,1731252640846,-500.0,0.00024657,2]
[341847353,1731252640855,-500.0,0.00024657,2]
[341847355,1731252640865,-500.0,0.00024657,2]
[341847357,1731252640875,-1890.93,0.00024657,2]
[341847359,1731252640884,-500.0,0.00024657,2]
[341847361,1731252640895,-500.00000001,0.00024657,2]
[341847363,1731252640905,-500.0,0.00024657,2]
[341847365,1731252640914,-500.0,0.00024657,2]
[341847367,1731252640923,-500.0,0.00024657,2]
[341847369,1731252640932,-1000.0,0.00024657,2]
[341847371,1731252640942,-500.0,0.00024657,2]
[341847373,1731252640952,-500.0,0.00024657,2]
[341847375,1731252640961,-500.0,0.00024657,2]
[341847377,1731252640971,-500.0,0.00024657,2]
[341847379,1731252640980,-627.3,0.00024657,2]
[341847381,1731252640989,-500.0,0.00024657,2]
[341847383,1731252640998,-500.0,0.00024657,2]
[341847385,1731252641007,-1081.97,0.00024657,2]
[341847387,1731252641016,-500.0,0.00024657,2]
[341847389,1731252641025,-500.0,0.00024657,2]
[341847391,1731252641034,-500.0,0.00024657,2]
[341847393,1731252641043,-1685.67,0.00024657,2]
[341847395,1731252641053,-760.96,0.00024657,2]
[341847397,1731252641062,-511.42772402,0.00024657,2]
[341847399,1731252641072,-500.0,0.00024657,2]
[341847401,1731252641082,-500.0,0.00024657,2]
[341847403,1731252641092,-500.0,0.00024657,2]
[341847405,1731252641102,-516.6,0.00024657,2]
[341847407,1731252641112,-500.0,0.00024657,2]
[341847409,1731252641121,-500.0,0.00024657,2]
[341847411,1731252641130,-500.0,0.00024657,2]
[341847413,1731252641140,-1427.03,0.00024657,2]
[341847415,1731252641157,-500.0,0.00024657,2]
[341847417,1731252641167,-181.39785902,0.00024657,2]
[341847419,1731252641176,-17701.48,0.00024657,2]
[341847421,1731252641186,-500.0,0.00024657,2]
[341847423,1731252641196,-503.08291973,0.00024657,2]
[341847425,1731252641206,-5623.37,0.00024657,2]
[341847427,1731252641215,-640.6225318,0.00024657,2]
[341847429,1731252641225,-508.7586519,0.00024657,2]
[341847431,1731252641234,-500.0,0.00024657,2]
[341847433,1731252641244,-500.0,0.00024657,2]
[341847435,1731252641254,-504.18340444,0.00024657,2]
[341847437,1731252641263,-1361.03,0.00024657,2]
[341847439,1731252641272,-500.0,0.00024657,2]
[341847441,1731252641282,-500.0,0.00024657,2]
[341847443,1731252641292,-295.36527639,0.00024657,2]
[341847457,1731252641420,-500.0,0.00024657,2]
[341847459,1731252641430,-500.0,0.00024657,2]
[341847461,1731252641440,-500.0,0.00024657,2]
[341847463,1731252641449,-500.0,0.00024657,2]
[341847465,1731252641459,-500.0,0.00024657,2]
[341847467,1731252641469,-500.0,0.00024657,2]
[341847469,1731252641482,-500.0,0.00024657,2]
[341847471,1731252641493,-500.0,0.00024657,2]
[341847473,1731252641502,-500.0,0.00024657,2]
[341847475,1731252641513,-500.0,0.00024657,2]
[341847477,1731252641523,-500.0,0.00024657,2]
[341847479,1731252641532,-500.0,0.00024657,2]
[341847481,1731252641542,-500.0,0.00024657,2]
[341847483,1731252641551,-500.0,0.00024657,2]
[341847485,1731252641561,-500.0,0.00024657,2]
[341847487,1731252641572,-500.0,0.00024657,2]
[341847489,1731252641581,-500.0,0.00024657,2]
[341847491,1731252641590,-741.31,0.00024657,2]
[341847493,1731252641599,-1316.72,0.00024657,2]
[341847495,1731252641608,-2691.29,0.00024657,2]
[341847497,1731252641618,-500.0,0.00024657,2]
[341847499,1731252641628,-1722.87,0.00024657,2]
[341847501,1731252641637,-500.0,0.00024657,2]
[341847503,1731252641649,-516.84,0.00024657,2]
[341847505,1731252641659,-500.0,0.00024657,2]
[341847507,1731252641669,-729.86,0.00024657,2]
[341847509,1731252641679,-331.01478881,0.00024657,2]
[341847511,1731252641688,-1253.85,0.00024657,2]
[341847513,1731252641698,-900.8,0.00024657,2]
[341847515,1731252641708,-500.0,0.00024657,2]
[341847517,1731252641718,-500.0,0.00024657,2]
[341847519,1731252641728,-766.0,0.00024657,2]